Cogmind - Beta 12 @@@ ROGUE MODE // 2023.07.09 @ 17:12:05 Player: Senator Honkstrong Result: Destroyed by D-53 Grenadier with Mini Grenade Launcher Performance ------------- Evolutions (0) 0 Regions Visited (2) 400 Robots Destroyed (18) 90 Value Destroyed (275) 275 Prototype IDs (7) 140 Alien Tech Used (0) 0 Bonus (0) 0 TOTAL SCORE: 905 Bonus ------- None Cogmind --------- Core Integrity 0/250 Matter 300/300 Energy 100/100 System Corruption 0% Temperature Cool (0) Movement Core (200) Ox3 Location -10/Mines Parts ------- > --- POWER (1) -------- (None) > --- PROPULSION (2) --- (None) > --- UTILITY (2) ------ Medium Storage Unit > --- WEAPON (2) ------- (None) > --- INVENTORY (10) --- Ion Engine Improved Heat Sink Large Matter Pod (150) Targeting Computer Particle Gun Light Assault Rifle Light Assault Rifle Grenade Launcher Peak State ------------ > --- POWER ------------ Light Nuclear Core > --- PROPULSION ------- Light Treads Light Treads > --- UTILITY ---------- Medium Storage Unit Light Armor Plating > --- WEAPON ----------- Medium Laser Assault Rifle > --- INVENTORY -------- Ion Engine Improved Heat Sink Large Matter Pod Signal Interpreter Small Laser Small Laser Particle Gun Light Assault Rifle Light Assault Rifle [Rating: 10] Favorites ----------- Power Ion Engine Engine Ion Engine Power Core Light Nuclear Core Propulsion Light Treads Treads Light Treads Utility Medium Storage Unit Storage Medium Storage Unit Protection Light Armor Plating Weapon Medium Laser Energy Gun Medium Laser Ballistic Gun Assault Rifle Build | -11 -10 -10 ------- Run | Jun Mat Min Slots Evolved . | . . . Power . | . . . Propulsion . | . . . Utility . | . . . Weapon . | . . . Parts Attached 14 | 6 6 2 Power 2 | 1 1 . Engine 1 | 1 . . Core 1 | . 1 . Reactor . | . . . Propulsion 6 | 2 2 2 Treads 6 | 2 2 2 Leg . | . . . Wheel . | . . . Hover . | . . . Flight . | . . . Utility 3 | 1 2 . Device . | . . . Storage 2 | 1 1 . Processor . | . . . Hackware . | . . . Protection 1 | . 1 . Artifact . | . . . Weapon 3 | 2 1 . Energy Gun 1 | 1 . . Energy Cannon . | . . . Ballistic Gun 2 | 1 1 . Ballistic Cannon . | . . . Launcher . | . . . Special Weapon . | . . . Impact Weapon . | . . . Slashing Weapon . | . . . Piercing Weapon . | . . . Special Melee Weapon . | . . . Unidentified Prototypes . | . . . Parts Lost 8 | . . 8 Power 1 | . . 1 Propulsion 4 | . . 4 Utility 1 | . . 1 Weapon 2 | . . 2 Highest Loss Streak 8 | . . 8 To Critical Strikes . | . . . Average Slot Usage (%) 88 | . 87 98 Engine 7 | . 9 . Core 6 | . 4 14 Treads 27 | . 27 27 Storage 14 | . 14 14 Protection 4 | . 2 13 Energy Gun 14 | . 14 14 Ballistic Gun 13 | . 13 14 Naked Turns . | . . . Heaviest Build 22 | 14 22 22 Greatest Support 40 | 40 40 40 Greatest Overweight (x) 1 | . . 1 Average Overweight (x) . | . . . Largest Inventory Capacity 10 | 8 10 10 Average Capacity 9 | 7 9 10 Most Carried 10 | 2 10 10 Average Carried 6 | 1 6 9 Final Capacity 10 | 8 10 10 Final Carried 10 | 2 10 8 Class Distribution -------------------- 100% | Mutant Dominant Class ---------------- Mutant | -10/Materials Mutant | -10/Mines Resources | -11 -10 -10 ----------- Run | Jun Mat Min Matter Collected 597 | 266 312 19 Remotely . | . . . Salvage Created 517 | 122 395 . Parts 40 | 3 37 . Haulers Intercepted 2 | . 2 . Recyclers Shooed 2 | . 2 . Parts Field Recycled . | . . . Retrieved Matter . | . . . Parts Self-Destructed . | . . . Prevented . | . . . Kills | -11 -10 -10 ------- Run | Jun Mat Min Combat Hostiles Destroyed 10 | . 10 . Guns 10 | . 10 . Classes Destroyed 7 | 2 5 . Worker 1 | . 1 . Tunneler 1 | 1 . . Hauler 2 | . 2 . Recycler 1 | 1 . . Watcher 3 | . 3 . Swarmer 6 | . 6 . Grunt 4 | . 4 . Best Kill Streak 4 | 2 4 . Combat Bots Only 3 | . 3 . Max Kills in Single Turn 1 | 1 1 . Gunslinging . | . . . Exploded . | . . . Melee . | . . . Uniques/NPCs Destroyed . | . . . Combat | -11 -10 -10 -------- Run | Jun Mat Min Damage Taken 1335 | . 261 1074 Core 250 | . 26 224 Absorbed by Shields . | . . . Regen/Repaired (Parts) 186 | . 186 . Core Remaining (%) 100 | 100 . . Volleys Fired 53 | 2 48 3 Largest 2 | 2 2 2 Hottest 70 | 70 70 70 Shots Fired 106 | 4 96 6 Gun 106 | 4 96 6 Cannon . | . . . Launcher . | . . . Special . | . . . Kinetic 53 | 2 48 3 Thermal 53 | 2 48 3 Explosive . | . . . Electromagnetic . | . . . Robot Hit Streak 16 | 2 16 3 Robot Miss Streak 4 | 1 4 1 Penetration Max . | . . . Secondary Targets . | . . . Shots Hit Robots 70 | 3 63 4 Core Hits 28 | 2 24 2 Critical Kills 1 | . 1 . Critical Parts Destroyed . | . . . Critical Strikes 3 | . 2 1 Burn 2 | . 1 1 Destroy 1 | . 1 . Melee Attacks . | . . . Impact . | . . . Slashing . | . . . Piercing . | . . . Sneak Attacks . | . . . Combat Hostiles . | . . . Follow-up Attacks . | . . . Damage Inflicted 922 | 40 827 55 Guns 908 | 40 813 55 Cannons . | . . . Explosions . | . . . Melee . | . . . Ramming 14 | . 14 . Kinetic 504 | 27 434 43 Thermal 404 | 13 379 12 Explosive . | . . . Electromagnetic . | . . . Impact . | . . . Slashing . | . . . Piercing . | . . . Highest Corruption . | . . . Average Corruption . | . . . Corruption Purged . | . . . Corruption Blocked . | . . . Overload Shots . | . . . Overflow Damage . | . . . Projectiles . | . . . Explosions . | . . . Melee . | . . . Knockbacks . | . . . Impact . | . . . Kinetic . | . . . Secondary . | . . . Self-Inflicted Damage . | . . . Shots . | . . . Rammed 6 | . 6 . Targets Rammed 6 | . 6 . Kicked . | . . . Crushed . | . . . Highest Temperature 102 | 18 102 48 Average Temperature 24 | 10 25 26 Received Heat Transfer 108 | . 108 . Siege Activations . | . . . Robots Corrupted . | . . . Combat Hostiles . | . . . Parts Fried . | . . . Impact Corruptions . | . . . Robots Melted . | . . . Combat Hostiles . | . . . Parts Melted 3 | . 3 . Heat Transferred 1332 | 37 1184 111 Parts Sabotaged . | . . . Parts Stolen . | . . . Parts Stripped . | . . . Power Chain Reactions . | . . . Missiles Intercepted . | . . . Alert | -11 -10 -10 ------- Run | Jun Mat Min Peak Influence 224 | 10 224 17 Initial 6 | . 6 2 Average 61 | 2 74 2 Maximum Alert Level 1 | . 1 . Low Security (%) 95 | 100 94 100 Level 1 4 | . 5 . Level 2 . | . . . Level 3 . | . . . Level 4 . | . . . Level 5 . | . . . High Security . | . . . Max Security . | . . . Squads Dispatched 1 | . 1 . Investigation . | . . . Extermination . | . . . Reinforcement 1 | . 1 . Assault . | . . . Garrison . | . . . Intercept . | . . . Searches Triggered . | . . . Construction Impeded . | . . . Haulers Reinforced . | . . . Active Scanning Responses . | . . . Cargo Convoy Interrupts . | . . . Stealth | -11 -10 -10 --------- Run | Jun Mat Min Distress Signals 1 | . 1 . Communications Jammed . | . . . Distress Signals . | . . . Times Spotted 30 | . 19 11 Peak Tracking Total 9 | . 5 9 Tactical Retreats 3 | . 2 1 Traps | -11 -10 -10 ------- Run | Jun Mat Min Traps Triggered . | . . . Indirectly . | . . . Trap Hack Attempts . | . . . Triggered . | . . . Disarmed . | . . . Reprogrammed . | . . . Reused . | . . . Traps Extracted . | . . . Installed . | . . . Triggered . | . . . Machines | -11 -10 -10 ---------- Run | Jun Mat Min Machines Disabled . | . . . Max in Single Turn . | . . . Machines Repaired . | . . . Machines Sabotaged . | . . . Overloaded Fab Kills . | . . . Hacking | -11 -10 -10 --------- Run | Jun Mat Min Machines Accessed 10 | . 10 . Terminals 7 | . 7 . Fabricators . | . . . Repair Stations 1 | . 1 . Recycling Units 2 | . 2 . Scanalyzers . | . . . Garrison Access . | . . . Total Hacks 37 | . 37 . Successful 28 | . 28 . Failed 9 | . 9 . Catastrophic . | . . . Database Lockouts . | . . . Manual 24 | . 24 . Terminals 26 | . 26 . Fabricators . | . . . Repair Stations 6 | . 6 . Recycling Units 5 | . 5 . Scanalyzers . | . . . Garrison Access . | . . . Terminal Hacks 16 | . 16 . Robot Analysis 4 | . 4 . Prototype ID Bank 9 | . 9 . Branch Access Points 1 | . 1 . Locate Traps 2 | . 2 . Fabricator Hacks . | . . . Repair Station Hacks 6 | . 6 . Scan Component 3 | . 3 . Repair 3 | . 3 . Recycling Unit Hacks 2 | . 2 . Retrieve Components 2 | . 2 . Scanalyzer . | . . . Garrison Access Hacks . | . . . Unauthorized Hacks 4 | . 4 . Terminals 4 | . 4 . Botnet 4 | . 4 . Fabricators . | . . . Repair Stations . | . . . Recycling Units . | . . . Scanalyzers . | . . . Garrison Access . | . . . Data Cores Recovered . | . . . Used . | . . . Hacking Detections 8 | . 8 . Full Trace Events . | . . . Feedback Events . | . . . Feedback Blocked . | . . . Robot Schematics Acquired . | . . . Robots Built . | . . . Authchips . | . . . Time . | . . . Total Robot Build Rating . | . . . Part Schematics Acquired . | . . . Parts Built . | . . . Authchips . | . . . Time . | . . . Total Part Build Rating . | . . . Parts Repaired 3 | . 3 . Time 78 | . 78 . Parts Recycled . | . . . Recycled Matter . | . . . Retrieved Matter . | . . . Retrieved Components 17 | . 17 . Parts Scanalyzed . | . . . Part Schematics Acquired . | . . . Parts Damaged . | . . . Bothacking | -11 -10 -10 ------------ Run | Jun Mat Min Used RIF Installer . | . . . Robots Hacked . | . . . Non-combat . | . . . Combat . | . . . Robot Hacks Applied . | . . . Relay Couplers Released . | . . . Fabnet Peak Effective % . | . . . Robots Rewired . | . . . Allies Hacked . | . . . Hacks Repelled . | . . . Allies | -11 -10 -10 -------- Run | Jun Mat Min Total Allies . | . . . Largest Group . | . . . Highest-Rated Group . | . . . Highest-Rated Ally . | . . . Total Orders . | . . . Ally Attacks . | . . . Total Damage . | . . . Kills . | . . . Allies Corrupted . | . . . Allies Melted . | . . . Intel | -11 -10 -10 ------- Run | Jun Mat Min Robot Analysis Total 4 | . 4 . Derelict Logs Recovered 1 | . . 1 Drone Launches . | . . . Drone Recoveries . | . . . Exploration | -11 -10 -10 ------------- Run | Jun Mat Min Turns Passed 2167 | 118 1803 246 Spaces Moved 1049 | 66 841 142 Core 3 | 3 . . Treads 1046 | 63 841 142 Legs . | . . . Wheels . | . . . Hover . | . . . Flight . | . . . Fastest Speed 50 | 50 160 160 Average Speed 159 | 155 160 161 Slowest Speed 240 | 160 160 240 Overloaded Moves . | . . . Propulsion Burnouts . | . . . Robots Hopped . | . . . Cave-ins Triggered . | . . . Exploration Rate (%) 46 | 5 96 37 Regions Visited 2 Branch Regions 1 Pre-discovered Areas . | . . . Known Exits Taken 1 | . 1 . Unknown Exits Taken 1 | 1 . . Scrap Searched 1 | . . 1 Spaces Dug . | . . . Terrain Destroyed . | . . . Melee . | . . . Projectile . | . . . AOE . | . . . Terrain Rammed . | . . . Walls Destroyed . | . . . Machines Disabled . | . . . Actions | -11 -10 -10 --------- Run | Jun Mat Min Total 1428 | 75 1200 153 Wait 286 | . 280 6 Move 1047 | 65 840 142 Hop . | . . . Pick Up 15 | 2 13 . Fast Attach 11 | 6 5 . Attach 2 | . . 2 Detach . | . . . Swap 1 | . 1 . Drop 7 | . 7 . Fire 53 | 2 48 3 Melee . | . . . Ram . | . . . Kick . | . . . Crush 6 | . 6 . Escape Stasis . | . . . Rewire . | . . . Trap . | . . . Miscellaneous . | . . . Route ------- -11/Junkyard -10/Materials (discovered 4 exits: *Mat x3 / *Min) -10/Mines (discovered 1 exit: *Mat) History --------- Turn | Location | Event 17 | -11/Junkyard | Discovered new exit (range 13) 119 | -11/Junkyard | Entered Materials 310 | -10/Materials | Build established: Mutant 366 | -10/Materials | Identified exit to Mines 986 | -10/Materials | Discovered new exit (range 5) 1200 | -10/Materials | Discovered new exit (range 15) 1589 | -10/Materials | Repaired Lgt. Treads 1616 | -10/Materials | Repaired Lgt. Treads 1644 | -10/Materials | Repaired Assault Rifle 1747 | -10/Materials | Discovered new exit (range 8) 1922 | -10/Materials | Entered Mines 1967 | -10/Mines | Identified exit to Materials 2099 | -10/Mines | Assembled infested the area 2104 | -10/Mines | Assisted by a Guerilla fighting off Assembled 2161 | -10/Mines | Core integrity fell below 50% 2167 | -10/Mines | Core integrity fell below 20% 2168 | -10/Mines | Destroyed by D-53 Grenadier with Mini Grenade Launcher Last Messages --------------- 02146_ The unstable cave ceiling collapses. 02146_ as-07284 destroyed. 02147_ The unstable cave ceiling collapses. 02147_ as-82608 destroyed. 02149_ as-55824 destroyed. 02150_ The unstable cave ceiling collapses. 02150_ as-24194 destroyed. 02152_ The unstable cave ceiling collapses. 02155_ D-53 Grenadier suffers critical hit (Burn). 02156_ Lgt. Treads destroyed. 02156_ as-54508 destroyed. 02158_ Lgt. Armor Plating destroyed. 02160_ The unstable cave ceiling collapses. 02160_ Lgt. Nuclear Core destroyed. 02160_ Lgt. Treads destroyed. 02162_ The unstable cave ceiling collapses. 02162_ Med. Laser destroyed. 02163_ The unstable cave ceiling collapses. 02164_ Assault Rifle destroyed. 02165_ Lgt. Treads destroyed. Map ----- +----------------------------------------------------+ | ## """ ####??????????????????????? | | ## """ % #??????????????????????? | | ## """ #% #??????????????????????? | | ## # #??????????????????????? | | ############ #??????????????????????? | | #??????????# #??????????????????????? | | #?????????## #??????????????????????? | | ######???## ###????????????????????? | | ##?## ##???????????????????? | | ### ##??????????????????? | | ##?????????????????? | | ##????????????????? | | ## ##### #????????????????? | | ?# #???## """ #????????????????? | | ?# #????# """ #????????????????? | | ?## #????## """ ##???????????????? | | ?## #######% ##??????????????? | | ## ##?????????????? | | # ##????????????? | | ####### #????????????? | | ##?????# #####????????? | | #??????# ##???????? | | ##??????## ##??????? | | ####????????# #??????? | | ##???????????# #??????? | | #????????????# d @ #??????? | | ????????????## d #??????? | | ???????????## # #??????? | | ???????????# #??????? | | ???????????# # ##??????? | | ???????????# # ##???????? | | ???????????# # ##????????? | | ?????????? % ## # ?????????? | | ???????? ?#### ????????? | | ?????? ????# ###???????? | | ????? #? ????## #?????????? | | ????????#%=## ????## #?????????? | | ????????#!%??##?????########?????????? | | ????????#? ??????????????????????????? | | ?????????? ??????????????????????????? | | ????????? ??????????????????????????? | | ????????? ???????????????????????????? | | ????????? ???????????????????????????? | | ????????? ???????????????????????????? | | ?????????????????????????????????????? | | ?????????????????????????????????????? | | ?????????????????????????????????????? | | ?????????????????????????????????????? | | ?????????????????????????????????????? | | ?????????????????????????????????????? | +----------------------------------------------------+ Best States ------------- Heat Dissipation 25 Energy Generation 14 Energy Capacity 250 Matter Stores 300 Matter Capacity 300 Sight Range 16 Terrain Scan Density 10 Armor Coverage 150 Evasion (%) 40 Recoil Reduction 2 Item Schematics ----------------- None Robot Schematics ------------------ None Fabricated ------------ Nothing Alien Tech Used ----------------- None Achievements -------------- Armchair Analyst Challenges ------------ None Game ------ Seed SwarmMissileAmplifier Manual? 0 Play Time 00:17:02 Cumulative 29.3 hours Start 2023.07.09 @ 16:56:20 End 2023.07.09 @ 17:12:05 Sessions 1 Manual Loads 0 Difficulty Rogue Special Mode None Game No. 18 Rogue 18 Adventurer 0 Explorer 0 Win Type - Total 0 Types 0/0/0/0/0/0/0/0/0 Lore% 25 Gallery% 28 Achievement% 28 Wizard Run 0 Options --------- ASCII 0 Keyboard 0 Movement Mouse Keybinds 0 Fullscreen 1 Font 18/SmallcapsGlow Map View 76x50 Tactical HUD 1 Map Filters NONE Filters NONE Steam X RUN: a8685e18-f300-4d6b-9337-4eb82744c818